[Event "Titled Tuesday Blitz June 21 Late 2022"]
[White "Isajevsky, Anton"]
[Black "Melikhov, Evgeny V."]
[WhiteFideId "4142500"]
[BlackFideId "4122046"]
[WhiteElo "2510"]
[BlackElo "1904"]
[Result "1/2-1/2"]
[Round "11"]
[TimeControl "180+1"]
[Date "2022.06.22"]
[WhiteClock "0:00:05"]
[BlackClock "0:00:17"]

1. b3 {[%clk 0:02:48]}  e5 {[%clk 0:02:59]} 2. Bb2 {[%clk 0:02:48]}  Nc6 {[%clk 0:02:59]} 3. e3 {[%clk 0:02:48]}  a6 {[%clk 0:02:59]} 4. c4 {[%clk 0:02:45]}  d5 {[%clk 0:02:58]} 5. cxd5 {[%clk 0:02:45]}  Qxd5 {[%clk 0:02:58]} 6. Nc3 {[%clk 0:02:45]}  Qd7 {[%clk 0:02:51]} 7. Nf3 {[%clk 0:02:41]}  Bd6 {[%clk 0:02:50]} 8. d4 {[%clk 0:02:24]}  exd4 {[%clk 0:02:48]} 9. Nxd4 {[%clk 0:02:24]}  Nxd4 {[%clk 0:02:48]} 10. Qxd4 {[%clk 0:02:24]}  Nf6 {[%clk 0:02:47]} 11. O-O-O {[%clk 0:02:16]}  Qe7 {[%clk 0:02:46]} 12. Bc4 {[%clk 0:02:09]}  Be6 {[%clk 0:02:42]} 13. Bxe6 {[%clk 0:01:47]}  Qxe6 {[%clk 0:02:42]} 14. f3 {[%clk 0:01:45]}  Qe5 {[%clk 0:02:18]} 15. Qd3 {[%clk 0:01:20]}  O-O-O {[%clk 0:02:02]} 16. Ne4 {[%clk 0:01:19]}  Ba3 {[%clk 0:01:51]} 17. Qc3 {[%clk 0:00:54]}  Bxb2+ {[%clk 0:01:44]} 18. Kxb2 {[%clk 0:00:53]}  Qxc3+ {[%clk 0:01:41]} 19. Nxc3 {[%clk 0:00:54]}  Rxd1 {[%clk 0:01:38]} 20. Rxd1 {[%clk 0:00:54]}  Rd8 {[%clk 0:01:37]} 21. Rxd8+ {[%clk 0:00:50]}  Kxd8 {[%clk 0:01:38]} 22. Kc2 {[%clk 0:00:49]}  c5 {[%clk 0:01:34]} 23. a4 {[%clk 0:00:47]}  b6 {[%clk 0:01:32]} 24. Kd3 {[%clk 0:00:43]}  Kd7 {[%clk 0:01:32]} 25. g4 {[%clk 0:00:24]}  Kc6 {[%clk 0:01:31]} 26. g5 {[%clk 0:00:23]}  Nd7 {[%clk 0:01:21]} 27. f4 {[%clk 0:00:22]}  f5 {[%clk 0:01:12]} 28. gxf6 {[%clk 0:00:21]}  gxf6 {[%clk 0:01:11]} 29. e4 {[%clk 0:00:20]}  b5 {[%clk 0:01:10]} 30. axb5+ {[%clk 0:00:18]}  axb5 {[%clk 0:01:11]} 31. Nd5 {[%clk 0:00:19]}  Kd6 {[%clk 0:01:00]} 32. Ne3 {[%clk 0:00:17]}  Nb6 {[%clk 0:00:52]} 33. Nf5+ {[%clk 0:00:14]}  Ke6 {[%clk 0:00:50]} 34. Ne3 {[%clk 0:00:15]}  Kd6 {[%clk 0:00:47]} 35. Nf5+ {[%clk 0:00:15]}  Ke6 {[%clk 0:00:47]} 36. Ne3 {[%clk 0:00:15]}  Nc8 {[%clk 0:00:37]} 37. Nd5 {[%clk 0:00:13]}  Nd6 {[%clk 0:00:34]} 38. Ne3 {[%clk 0:00:07]}  Nb7 {[%clk 0:00:19]} 39. Nd5 {[%clk 0:00:06]}  Nd6 {[%clk 0:00:18]} 40. Ne3 {[%clk 0:00:05]}  Nb7 {[%clk 0:00:18]} 41. Nd5 {[%clk 0:00:05]}  Nd6 {[%clk 0:00:17]} 1/2-1/2


[Site "https://www.chess.com"]

[Event "Titled Tuesday Blitz June 21 Late 2022"]
[White "Jian, Alex"]
[Black "Adla, Diego"]
[WhiteFideId "30901022"]
[BlackFideId "100072"]
[WhiteElo "2111"]
[BlackElo "2377"]
[Result "1-0"]
[Round "11"]
[TimeControl "180+1"]
[Date "2022.06.22"]
[WhiteClock "0:00:11"]
[BlackClock "0:00:02"]

1. Nf3 {[%clk 0:02:58]}  Nf6 {[%clk 0:02:59]} 2. b4 {[%clk 0:02:48]}  e6 {[%clk 0:02:42]} 3. a3 {[%clk 0:02:48]}  a5 {[%clk 0:02:41]} 4. b5 {[%clk 0:02:47]}  b6 {[%clk 0:02:42]} 5. Bb2 {[%clk 0:02:47]}  Bb7 {[%clk 0:02:42]} 6. a4 {[%clk 0:02:47]}  Be7 {[%clk 0:02:42]} 7. g3 {[%clk 0:02:47]}  O-O {[%clk 0:02:43]} 8. Bg2 {[%clk 0:02:47]}  c5 {[%clk 0:02:42]} 9. d3 {[%clk 0:02:41]}  d6 {[%clk 0:02:41]} 10. O-O {[%clk 0:02:40]}  Qc7 {[%clk 0:02:40]} 11. Nbd2 {[%clk 0:02:36]}  Nbd7 {[%clk 0:02:40]} 12. e4 {[%clk 0:02:12]}  Rfe8 {[%clk 0:02:34]} 13. Re1 {[%clk 0:02:08]}  Rad8 {[%clk 0:02:33]} 14. c4 {[%clk 0:02:06]}  Nf8 {[%clk 0:02:14]} 15. e5 {[%clk 0:02:02]}  dxe5 {[%clk 0:02:12]} 16. Nxe5 {[%clk 0:01:57]}  Ng6 {[%clk 0:02:02]} 17. Ndf3 {[%clk 0:01:19]}  Bd6 {[%clk 0:01:51]} 18. Nxg6 {[%clk 0:01:15]}  hxg6 {[%clk 0:01:45]} 19. Be5 {[%clk 0:01:15]}  Nd7 {[%clk 0:01:41]} 20. Bb2 {[%clk 0:01:00]}  Re7 {[%clk 0:00:59]} 21. Qe2 {[%clk 0:00:59]}  Rde8 {[%clk 0:00:57]} 22. Rad1 {[%clk 0:00:55]}  e5 {[%clk 0:00:43]} 23. Ng5 {[%clk 0:00:54]}  Bxg2 {[%clk 0:00:29]} 24. Kxg2 {[%clk 0:00:54]}  f5 {[%clk 0:00:27]} 25. Kg1 {[%clk 0:00:38]}  Qb7 {[%clk 0:00:20]} 26. Qf3 {[%clk 0:00:33]}  Qxf3 {[%clk 0:00:19]} 27. Nxf3 {[%clk 0:00:33]}  Kf7 {[%clk 0:00:12]} 28. Ng5+ {[%clk 0:00:31]}  Kg8 {[%clk 0:00:12]} 29. Nf3 {[%clk 0:00:29]}  Kf7 {[%clk 0:00:12]} 30. Kg2 {[%clk 0:00:29]}  Kf6 {[%clk 0:00:10]} 31. Nd2 {[%clk 0:00:27]}  g5 {[%clk 0:00:10]} 32. Nf3 {[%clk 0:00:23]}  g4 {[%clk 0:00:08]} 33. Nd2 {[%clk 0:00:23]}  g6 {[%clk 0:00:08]} 34. h3 {[%clk 0:00:23]}  gxh3+ {[%clk 0:00:07]} 35. Kxh3 {[%clk 0:00:24]}  Rh7+ {[%clk 0:00:07]} 36. Kg2 {[%clk 0:00:24]}  Reh8 {[%clk 0:00:08]} 37. Nf3 {[%clk 0:00:17]}  g5 {[%clk 0:00:05]} 38. Rh1 {[%clk 0:00:17]}  Rxh1 {[%clk 0:00:04]} 39. Rxh1 {[%clk 0:00:18]}  Rxh1 {[%clk 0:00:04]} 40. Kxh1 {[%clk 0:00:19]}  g4 {[%clk 0:00:05]} 41. Nd2 {[%clk 0:00:18]}  Ke6 {[%clk 0:00:04]} 42. Kg2 {[%clk 0:00:17]}  Be7 {[%clk 0:00:04]} 43. f3 {[%clk 0:00:17]}  gxf3+ {[%clk 0:00:03]} 44. Kxf3 {[%clk 0:00:17]}  Bg5 {[%clk 0:00:04]} 45. Nf1 {[%clk 0:00:15]}  Nf6 {[%clk 0:00:03]} 46. Nh2 {[%clk 0:00:13]}  Bd2 {[%clk 0:00:02]} 47. g4 {[%clk 0:00:12]}  fxg4+ {[%clk 0:00:01]} 48. Nxg4 {[%clk 0:00:12]}  Nxg4 {[%clk 0:00:02]} 49. Kxg4 {[%clk 0:00:13]}  Be3 {[%clk 0:00:02]} 50. Kf3 {[%clk 0:00:13]}  Bd4 {[%clk 0:00:02]} 51. Bxd4 {[%clk 0:00:10]}  exd4 {[%clk 0:00:02]} 52. Ke4 {[%clk 0:00:10]}  Kd6 {[%clk 0:00:02]} 53. Kf5 {[%clk 0:00:11]} 1-0


[Site "https://www.chess.com"]

[Event "Titled Tuesday Blitz June 21 Late 2022"]
[White "Kanyamarala, Trisha"]
[Black "Ricaurte Lopez, Juan Carlos"]
[WhiteFideId "45004722"]
[BlackFideId "3600327"]
[WhiteElo "2134"]
[BlackElo "2209"]
[Result "1/2-1/2"]
[Round "11"]
[TimeControl "180+1"]
[Date "2022.06.22"]
[WhiteClock "0:00:03"]
[BlackClock "0:00:15"]

1. d4 {[%clk 0:03:00]}  d5 {[%clk 0:02:58]} 2. c4 {[%clk 0:02:58]}  e5 {[%clk 0:02:56]} 3. dxe5 {[%clk 0:02:54]}  d4 {[%clk 0:02:55]} 4. a3 {[%clk 0:02:52]}  Nc6 {[%clk 0:02:53]} 5. Nf3 {[%clk 0:02:51]}  Bg4 {[%clk 0:02:48]} 6. Bf4 {[%clk 0:02:48]}  Nge7 {[%clk 0:02:45]} 7. b4 {[%clk 0:02:30]}  Ng6 {[%clk 0:02:43]} 8. Bg3 {[%clk 0:02:27]}  Bxf3 {[%clk 0:02:29]} 9. exf3 {[%clk 0:02:26]}  Ncxe5 {[%clk 0:02:22]} 10. f4 {[%clk 0:02:25]}  Nc6 {[%clk 0:02:18]} 11. Bd3 {[%clk 0:02:18]}  Qe7+ {[%clk 0:02:14]} 12. Qe2 {[%clk 0:01:58]}  Qxe2+ {[%clk 0:02:11]} 13. Kxe2 {[%clk 0:01:58]}  O-O-O {[%clk 0:02:10]} 14. Nd2 {[%clk 0:01:48]}  Bd6 {[%clk 0:02:08]} 15. f5 {[%clk 0:01:35]}  Nf4+ {[%clk 0:02:05]} 16. Bxf4 {[%clk 0:01:34]}  Bxf4 {[%clk 0:02:05]} 17. g3 {[%clk 0:01:28]}  Bxd2 {[%clk 0:02:02]} 18. Kxd2 {[%clk 0:01:28]}  Ne5 {[%clk 0:02:01]} 19. f4 {[%clk 0:01:25]}  Ng4 {[%clk 0:01:55]} 20. Rae1 {[%clk 0:01:12]}  Rhe8 {[%clk 0:01:44]} 21. h3 {[%clk 0:00:57]}  Ne3 {[%clk 0:01:36]} 22. g4 {[%clk 0:00:53]}  b6 {[%clk 0:01:33]} 23. Rhg1 {[%clk 0:00:48]}  c5 {[%clk 0:01:30]} 24. Rb1 {[%clk 0:00:46]}  Kc7 {[%clk 0:01:29]} 25. bxc5 {[%clk 0:00:38]}  bxc5 {[%clk 0:01:27]} 26. Rb5 {[%clk 0:00:38]}  Kc6 {[%clk 0:01:26]} 27. Rgb1 {[%clk 0:00:36]}  Re7 {[%clk 0:01:25]} 28. Ra5 {[%clk 0:00:33]}  Rc7 {[%clk 0:01:16]} 29. Rbb5 {[%clk 0:00:24]}  Kd6 {[%clk 0:01:13]} 30. Ra6+ {[%clk 0:00:22]}  Kd7 {[%clk 0:01:11]} 31. Rba5 {[%clk 0:00:21]}  Ra8 {[%clk 0:01:07]} 32. Rb5 {[%clk 0:00:18]}  Re8 {[%clk 0:01:04]} 33. Raa5 {[%clk 0:00:17]}  Kd6 {[%clk 0:01:02]} 34. Ra6+ {[%clk 0:00:17]}  Rc6 {[%clk 0:01:01]} 35. Rba5 {[%clk 0:00:13]}  Rb6 {[%clk 0:00:56]} 36. Rxb6+ {[%clk 0:00:10]}  axb6 {[%clk 0:00:56]} 37. Ra7 {[%clk 0:00:10]}  Re7 {[%clk 0:00:55]} 38. Ra8 {[%clk 0:00:10]}  Ng2 {[%clk 0:00:51]} 39. Rd8+ {[%clk 0:00:10]}  Kc7 {[%clk 0:00:49]} 40. Rg8 {[%clk 0:00:10]}  g6 {[%clk 0:00:46]} 41. fxg6 {[%clk 0:00:10]}  hxg6 {[%clk 0:00:46]} 42. f5 {[%clk 0:00:10]}  gxf5 {[%clk 0:00:43]} 43. gxf5 {[%clk 0:00:10]}  Nf4 {[%clk 0:00:42]} 44. f6 {[%clk 0:00:10]}  Re3 {[%clk 0:00:41]} 45. Bf5 {[%clk 0:00:10]}  Nxh3 {[%clk 0:00:39]} 46. Rg7 {[%clk 0:00:10]}  Kd6 {[%clk 0:00:34]} 47. Rxf7 {[%clk 0:00:10]}  Ke5 {[%clk 0:00:33]} 48. Bxh3 {[%clk 0:00:08]}  Rxh3 {[%clk 0:00:32]} 49. Rb7 {[%clk 0:00:07]}  Kxf6 {[%clk 0:00:30]} 50. Rxb6+ {[%clk 0:00:08]}  Ke5 {[%clk 0:00:30]} 51. Rd6 {[%clk 0:00:08]}  Ke4 {[%clk 0:00:28]} 52. Re6+ {[%clk 0:00:08]}  Kf5 {[%clk 0:00:26]} 53. Rc6 {[%clk 0:00:08]}  Rxa3 {[%clk 0:00:25]} 54. Rxc5+ {[%clk 0:00:08]}  Ke4 {[%clk 0:00:25]} 55. Rc8 {[%clk 0:00:08]}  Ra2+ {[%clk 0:00:25]} 56. Kc1 {[%clk 0:00:08]}  Kd3 {[%clk 0:00:24]} 57. c5 {[%clk 0:00:08]}  Rc2+ {[%clk 0:00:23]} 58. Kd1 {[%clk 0:00:08]}  Rc4 {[%clk 0:00:22]} 59. c6 {[%clk 0:00:08]}  Kc3 {[%clk 0:00:22]} 60. c7 {[%clk 0:00:08]}  d3 {[%clk 0:00:22]} 61. Ke1 {[%clk 0:00:05]}  d2+ {[%clk 0:00:19]} 62. Kd1 {[%clk 0:00:06]}  Rc6 {[%clk 0:00:19]} 63. Rd8 {[%clk 0:00:05]}  Rxc7 {[%clk 0:00:18]} 64. Rxd2 {[%clk 0:00:05]}  Re7 {[%clk 0:00:17]} 65. Rc2+ {[%clk 0:00:05]}  Kb3 {[%clk 0:00:16]} 66. Rc8 {[%clk 0:00:05]}  Kb4 {[%clk 0:00:15]} 67. Kd2 {[%clk 0:00:04]}  Kb5 {[%clk 0:00:15]} 68. Kd3 {[%clk 0:00:03]} 1/2-1/2


[Site "https://www.chess.com"]

[Event "Titled Tuesday Blitz June 21 Late 2022"]
[White "Lopez Perdomo, Juan David"]
[Black "Aldokhin, Ivan"]
[WhiteFideId "4405137"]
[BlackFideId "24115720"]
[WhiteElo "1997"]
[BlackElo "2231"]
[Result "1-0"]
[Round "11"]
[TimeControl "180+1"]
[Date "2022.06.22"]
[WhiteClock "0:00:04"]
[BlackClock "0:00:02"]

1. e4 {[%clk 0:02:56]}  e6 {[%clk 0:03:00]} 2. d4 {[%clk 0:02:56]}  d5 {[%clk 0:03:00]} 3. Nc3 {[%clk 0:02:56]}  Bb4 {[%clk 0:03:01]} 4. e5 {[%clk 0:02:56]}  Qd7 {[%clk 0:03:01]} 5. f4 {[%clk 0:02:53]}  b6 {[%clk 0:03:00]} 6. Nf3 {[%clk 0:02:54]}  Ba6 {[%clk 0:03:00]} 7. Bd2 {[%clk 0:02:45]}  Ne7 {[%clk 0:02:58]} 8. Bd3 {[%clk 0:02:43]}  Bxd3 {[%clk 0:02:56]} 9. cxd3 {[%clk 0:02:44]}  h5 {[%clk 0:02:48]} 10. Nh4 {[%clk 0:02:37]}  c5 {[%clk 0:02:38]} 11. O-O {[%clk 0:02:30]}  Bxc3 {[%clk 0:02:29]} 12. bxc3 {[%clk 0:02:22]}  cxd4 {[%clk 0:02:29]} 13. cxd4 {[%clk 0:02:22]}  Nbc6 {[%clk 0:02:29]} 14. Qa4 {[%clk 0:02:11]}  Nxe5 {[%clk 0:02:18]} 15. Qxd7+ {[%clk 0:02:02]}  Nxd7 {[%clk 0:02:18]} 16. f5 {[%clk 0:02:03]}  O-O {[%clk 0:01:32]} 17. fxe6 {[%clk 0:01:50]}  fxe6 {[%clk 0:01:33]} 18. Rfe1 {[%clk 0:01:50]}  Nf5 {[%clk 0:01:26]} 19. Nxf5 {[%clk 0:01:37]}  exf5 {[%clk 0:01:26]} 20. Re7 {[%clk 0:01:36]}  Rf7 {[%clk 0:01:24]} 21. Rae1 {[%clk 0:01:34]}  Rxe7 {[%clk 0:01:22]} 22. Rxe7 {[%clk 0:01:33]}  Nf6 {[%clk 0:01:03]} 23. Bf4 {[%clk 0:01:29]}  Re8 {[%clk 0:00:41]} 24. Rxa7 {[%clk 0:01:27]}  Ng4 {[%clk 0:00:39]} 25. Kf1 {[%clk 0:01:22]}  g5 {[%clk 0:00:19]} 26. Bxg5 {[%clk 0:01:14]}  Nxh2+ {[%clk 0:00:20]} 27. Kf2 {[%clk 0:01:15]}  Ng4+ {[%clk 0:00:18]} 28. Kf3 {[%clk 0:01:13]}  Re1 {[%clk 0:00:18]} 29. Rd7 {[%clk 0:00:44]}  Rf1+ {[%clk 0:00:17]} 30. Kg3 {[%clk 0:00:43]}  Rf2 {[%clk 0:00:11]} 31. a4 {[%clk 0:00:23]}  Ra2 {[%clk 0:00:12]} 32. Rxd5 {[%clk 0:00:12]}  h4+ {[%clk 0:00:12]} 33. Kxh4 {[%clk 0:00:12]}  Rxa4 {[%clk 0:00:08]} 34. Rd6 {[%clk 0:00:07]}  Rb4 {[%clk 0:00:05]} 35. Bf4 {[%clk 0:00:04]}  Kf7 {[%clk 0:00:05]} 36. Kg5 {[%clk 0:00:03]}  Nf6 {[%clk 0:00:05]} 37. Rxf6+ {[%clk 0:00:03]}  Ke7 {[%clk 0:00:05]} 38. Rd6 {[%clk 0:00:03]}  Rb5 {[%clk 0:00:05]} 39. Rc6 {[%clk 0:00:02]}  Kd7 {[%clk 0:00:05]} 40. Rc7+ {[%clk 0:00:03]}  Ke6 {[%clk 0:00:05]} 41. Rc6+ {[%clk 0:00:03]}  Kd7 {[%clk 0:00:04]} 42. Rf6 {[%clk 0:00:04]}  Rb3 {[%clk 0:00:04]} 43. Rxf5 {[%clk 0:00:05]}  Rxd3 {[%clk 0:00:04]} 44. g3 {[%clk 0:00:05]}  Rxd4 {[%clk 0:00:04]} 45. Rb5 {[%clk 0:00:06]}  Kc6 {[%clk 0:00:03]} 46. Rb2 {[%clk 0:00:05]}  b5 {[%clk 0:00:03]} 47. Kf5 {[%clk 0:00:04]}  b4 {[%clk 0:00:02]} 48. Be5 {[%clk 0:00:04]} 1-0


[Site "https://www.chess.com"]

[Event "Titled Tuesday Blitz June 21 Late 2022"]
[White "Martinez Reyes, Pedro Ramon"]
[Black "Lashkin, Jegor"]
[WhiteFideId "3901807"]
[BlackFideId "13907808"]
[WhiteElo "2410"]
[BlackElo "2368"]
[Result "1-0"]
[Round "11"]
[TimeControl "180+1"]
[Date "2022.06.21"]
[WhiteClock "0:00:15"]
[BlackClock "0:00:07"]

1. e4 {[%clk 0:03:00]}  c5 {[%clk 0:02:59]} 2. Nf3 {[%clk 0:03:01]}  d6 {[%clk 0:02:59]} 3. d4 {[%clk 0:03:00]}  cxd4 {[%clk 0:03:00]} 4. Nxd4 {[%clk 0:03:01]}  Nf6 {[%clk 0:03:01]} 5. Nc3 {[%clk 0:03:01]}  a6 {[%clk 0:03:01]} 6. Be2 {[%clk 0:03:02]}  e5 {[%clk 0:03:01]} 7. Nb3 {[%clk 0:03:02]}  Be7 {[%clk 0:03:01]} 8. O-O {[%clk 0:03:02]}  O-O {[%clk 0:03:01]} 9. Bg5 {[%clk 0:03:03]}  Be6 {[%clk 0:02:58]} 10. Bf3 {[%clk 0:03:02]}  Nbd7 {[%clk 0:02:58]} 11. Re1 {[%clk 0:03:02]}  Rc8 {[%clk 0:02:57]} 12. a3 {[%clk 0:03:02]}  b5 {[%clk 0:02:56]} 13. Nd2 {[%clk 0:03:02]}  Nb6 {[%clk 0:02:50]} 14. h3 {[%clk 0:02:51]}  h6 {[%clk 0:02:43]} 15. Bxf6 {[%clk 0:02:50]}  Bxf6 {[%clk 0:02:44]} 16. Bg4 {[%clk 0:02:50]}  Qc7 {[%clk 0:02:35]} 17. Bxe6 {[%clk 0:02:47]}  fxe6 {[%clk 0:02:36]} 18. Qg4 {[%clk 0:02:48]}  Qf7 {[%clk 0:02:35]} 19. Rad1 {[%clk 0:02:08]}  Be7 {[%clk 0:02:24]} 20. Re2 {[%clk 0:02:04]}  Rc6 {[%clk 0:02:11]} 21. Rf1 {[%clk 0:01:35]}  Bg5 {[%clk 0:01:53]} 22. Nf3 {[%clk 0:01:33]}  Bf6 {[%clk 0:01:48]} 23. Nd2 {[%clk 0:01:30]}  d5 {[%clk 0:01:46]} 24. Nb3 {[%clk 0:01:19]}  d4 {[%clk 0:01:42]} 25. Na2 {[%clk 0:01:17]}  Nc4 {[%clk 0:01:39]} 26. Nb4 {[%clk 0:01:17]}  Rd6 {[%clk 0:01:35]} 27. Nd3 {[%clk 0:01:17]}  Qc7 {[%clk 0:01:20]} 28. Nbc5 {[%clk 0:01:17]}  Qe7 {[%clk 0:01:15]} 29. b3 {[%clk 0:01:13]}  Rc6 {[%clk 0:00:58]} 30. b4 {[%clk 0:01:01]}  Nxa3 {[%clk 0:00:41]} 31. f4 {[%clk 0:00:59]}  Nc4 {[%clk 0:00:41]} 32. fxe5 {[%clk 0:00:52]}  Bg5 {[%clk 0:00:33]} 33. Rxf8+ {[%clk 0:00:53]}  Kxf8 {[%clk 0:00:33]} 34. Nf4 {[%clk 0:00:41]}  Nxe5 {[%clk 0:00:26]} 35. Nfxe6+ {[%clk 0:00:35]}  Kg8 {[%clk 0:00:24]} 36. Qf5 {[%clk 0:00:35]}  Bf6 {[%clk 0:00:19]} 37. Nxd4 {[%clk 0:00:27]}  Rxc5 {[%clk 0:00:17]} 38. bxc5 {[%clk 0:00:25]}  Qxc5 {[%clk 0:00:17]} 39. Qe6+ {[%clk 0:00:21]}  Kh8 {[%clk 0:00:18]} 40. c3 {[%clk 0:00:19]}  Qxc3 {[%clk 0:00:17]} 41. Nf5 {[%clk 0:00:16]}  Qc5+ {[%clk 0:00:17]} 42. Kh2 {[%clk 0:00:16]}  Qc7 {[%clk 0:00:14]} 43. g3 {[%clk 0:00:14]}  b4 {[%clk 0:00:12]} 44. Nxh6 {[%clk 0:00:14]}  Kh7 {[%clk 0:00:08]} 45. Nf5 {[%clk 0:00:09]}  Qc4 {[%clk 0:00:06]} 46. Qxc4 {[%clk 0:00:05]}  Nxc4 {[%clk 0:00:07]} 47. Ne3 {[%clk 0:00:04]}  Nxe3 {[%clk 0:00:04]} 48. Rxe3 {[%clk 0:00:05]}  Be5 {[%clk 0:00:04]} 49. Rd3 {[%clk 0:00:05]}  a5 {[%clk 0:00:03]} 50. Rd5 {[%clk 0:00:05]}  Bc7 {[%clk 0:00:03]} 51. Rb5 {[%clk 0:00:05]}  Kg6 {[%clk 0:00:02]} 52. Kg2 {[%clk 0:00:06]}  Kf7 {[%clk 0:00:02]} 53. Kf3 {[%clk 0:00:07]}  Ke6 {[%clk 0:00:03]} 54. Ke3 {[%clk 0:00:07]}  Kd7 {[%clk 0:00:03]} 55. Kd4 {[%clk 0:00:08]}  Kc6 {[%clk 0:00:03]} 56. Kc4 {[%clk 0:00:08]}  Bb6 {[%clk 0:00:03]} 57. e5 {[%clk 0:00:08]}  Bc7 {[%clk 0:00:03]} 58. e6 {[%clk 0:00:09]}  Kd6 {[%clk 0:00:03]} 59. Rg5 {[%clk 0:00:08]}  Kxe6 {[%clk 0:00:03]} 60. Rxg7 {[%clk 0:00:09]}  Be5 {[%clk 0:00:03]} 61. Rg6+ {[%clk 0:00:08]}  Bf6 {[%clk 0:00:03]} 62. g4 {[%clk 0:00:08]}  Kf7 {[%clk 0:00:03]} 63. Rh6 {[%clk 0:00:09]}  Kg7 {[%clk 0:00:01]} 64. Rh5 {[%clk 0:00:09]}  Bd8 {[%clk 0:00:01]} 65. Rd5 {[%clk 0:00:09]}  Bb6 {[%clk 0:00:01]} 66. Rb5 {[%clk 0:00:10]}  Bd8 {[%clk 0:00:01]} 67. Rb8 {[%clk 0:00:10]}  Bf6 {[%clk 0:00:01]} 68. Ra8 {[%clk 0:00:09]}  b3 {[%clk 0:00:01]} 69. Kxb3 {[%clk 0:00:09]}  Kg6 {[%clk 0:00:02]} 70. Rxa5 {[%clk 0:00:09]}  Bd8 {[%clk 0:00:02]} 71. Rf5 {[%clk 0:00:10]}  Bc7 {[%clk 0:00:02]} 72. Kc4 {[%clk 0:00:11]}  Bg3 {[%clk 0:00:02]} 73. Kd5 {[%clk 0:00:12]}  Bh4 {[%clk 0:00:03]} 74. Ke6 {[%clk 0:00:13]}  Bg3 {[%clk 0:00:04]} 75. Rh5 {[%clk 0:00:13]}  Bh4 {[%clk 0:00:05]} 76. Rxh4 {[%clk 0:00:13]}  Kg5 {[%clk 0:00:05]} 77. Rh5+ {[%clk 0:00:14]}  Kf4 {[%clk 0:00:06]} 78. Rf5+ {[%clk 0:00:14]}  Kg3 {[%clk 0:00:07]} 79. g5 {[%clk 0:00:15]} 1-0


[Site "https://www.chess.com"]

[Event "Titled Tuesday Blitz June 21 Late 2022"]
[White "Mickiewicz, Piotr"]
[Black "Bayo Milagro, Alvaro"]
[WhiteFideId "1114891"]
[BlackFideId "22275240"]
[WhiteElo "2209"]
[BlackElo "2270"]
[Result "0-1"]
[Round "11"]
[TimeControl "180+1"]
[Date "2022.06.21"]
[WhiteClock "0:00:03"]
[BlackClock "0:00:06"]

1. e4 {[%clk 0:03:00]}  e5 {[%clk 0:02:59]} 2. Nf3 {[%clk 0:03:00]}  Nc6 {[%clk 0:03:00]} 3. Bc4 {[%clk 0:03:00]}  Nf6 {[%clk 0:03:00]} 4. d3 {[%clk 0:03:00]}  Bc5 {[%clk 0:02:59]} 5. Nc3 {[%clk 0:02:58]}  O-O {[%clk 0:02:59]} 6. h3 {[%clk 0:02:55]}  Nd4 {[%clk 0:02:49]} 7. Nxe5 {[%clk 0:02:49]}  c6 {[%clk 0:02:37]} 8. O-O {[%clk 0:02:48]}  d5 {[%clk 0:02:36]} 9. exd5 {[%clk 0:02:42]}  cxd5 {[%clk 0:02:35]} 10. Bb3 {[%clk 0:02:36]}  Nxb3 {[%clk 0:02:08]} 11. axb3 {[%clk 0:02:35]}  Re8 {[%clk 0:02:02]} 12. d4 {[%clk 0:02:25]}  Bd6 {[%clk 0:01:58]} 13. Bf4 {[%clk 0:02:24]}  Bf5 {[%clk 0:01:55]} 14. Ne2 {[%clk 0:01:57]}  a6 {[%clk 0:01:45]} 15. Ng3 {[%clk 0:01:56]}  Be6 {[%clk 0:01:42]} 16. Re1 {[%clk 0:01:54]}  Rc8 {[%clk 0:01:41]} 17. c3 {[%clk 0:01:54]}  h6 {[%clk 0:01:30]} 18. Qd2 {[%clk 0:01:52]}  Bf8 {[%clk 0:01:27]} 19. b4 {[%clk 0:01:50]}  Qb6 {[%clk 0:01:20]} 20. Qd3 {[%clk 0:01:48]}  Ra8 {[%clk 0:01:07]} 21. Ra5 {[%clk 0:01:47]}  Rac8 {[%clk 0:01:05]} 22. Rea1 {[%clk 0:01:43]}  Nd7 {[%clk 0:00:56]} 23. Nxd7 {[%clk 0:01:41]}  Bxd7 {[%clk 0:00:57]} 24. Rxd5 {[%clk 0:01:40]}  Bc6 {[%clk 0:00:53]} 25. Re5 {[%clk 0:01:39]}  Rxe5 {[%clk 0:00:52]} 26. Bxe5 {[%clk 0:01:38]}  Bb5 {[%clk 0:00:47]} 27. Qd2 {[%clk 0:01:36]}  Qe6 {[%clk 0:00:44]} 28. Re1 {[%clk 0:01:31]}  Re8 {[%clk 0:00:43]} 29. Re3 {[%clk 0:01:31]}  Qd5 {[%clk 0:00:42]} 30. Nf5 {[%clk 0:01:22]}  Bc6 {[%clk 0:00:38]} 31. Rg3 {[%clk 0:01:14]}  Rxe5 {[%clk 0:00:34]} 32. c4 {[%clk 0:00:26]}  Qd7 {[%clk 0:00:34]} 33. Nxh6+ {[%clk 0:00:25]}  Kh7 {[%clk 0:00:33]} 34. Qc2+ {[%clk 0:00:15]}  Be4 {[%clk 0:00:28]} 35. Qc3 {[%clk 0:00:14]}  Re8 {[%clk 0:00:20]} 36. Ng4 {[%clk 0:00:14]}  Bd6 {[%clk 0:00:20]} 37. Re3 {[%clk 0:00:14]}  Bf4 {[%clk 0:00:20]} 38. Ne5 {[%clk 0:00:08]}  Rxe5 {[%clk 0:00:18]} 39. dxe5 {[%clk 0:00:09]}  Bxe3 {[%clk 0:00:17]} 40. Qxe3 {[%clk 0:00:10]}  Qf5 {[%clk 0:00:17]} 41. f3 {[%clk 0:00:10]}  Bc6 {[%clk 0:00:16]} 42. Kh2 {[%clk 0:00:07]}  g5 {[%clk 0:00:15]} 43. Kg3 {[%clk 0:00:05]}  Kg6 {[%clk 0:00:15]} 44. c5 {[%clk 0:00:04]}  Bd5 {[%clk 0:00:13]} 45. b3 {[%clk 0:00:04]}  Bc6 {[%clk 0:00:13]} 46. Qd4 {[%clk 0:00:04]}  Qe6 {[%clk 0:00:09]} 47. h4 {[%clk 0:00:04]}  Qxb3 {[%clk 0:00:05]} 48. hxg5 {[%clk 0:00:03]}  Qe6 {[%clk 0:00:06]} 49. f4 {[%clk 0:00:02]}  Qd5 {[%clk 0:00:06]} 50. Qxd5 {[%clk 0:00:01]}  Bxd5 {[%clk 0:00:07]} 51. Kg4 {[%clk 0:00:01]}  Be6+ {[%clk 0:00:07]} 52. Kf3 {[%clk 0:00:02]}  Bd5+ {[%clk 0:00:07]} 53. Kg4 {[%clk 0:00:02]}  Bxg2 {[%clk 0:00:06]} 54. f5+ {[%clk 0:00:01]}  Kg7 {[%clk 0:00:06]} 55. Kf4 {[%clk 0:00:02]}  Bd5 {[%clk 0:00:05]} 56. Ke3 {[%clk 0:00:03]}  Ba2 {[%clk 0:00:05]} 57. Kf4 {[%clk 0:00:03]}  Bb1 {[%clk 0:00:06]} 0-1


[Site "https://www.chess.com"]